fUSD/lending_fUSD_20251123
["ID","MTS","AMOUNT","RATE_DAILY","PERIOD"]
[394746809,1763926248037,-568.48,0.00038356,8]
[394746810,1763926248047,-500.0,0.00038356,8]
[394746811,1763926248056,-1211.74,0.00038356,8]
[394746812,1763926248066,-989.62,0.00038356,8]
[394746813,1763926248076,-500.0,0.00038356,8]
[394746814,1763926248086,-1920.58,0.00038356,8]
[394746815,1763926248096,-500.0,0.00038356,8]
[394746816,1763926248106,-508.1666772,0.00038356,8]
[394746817,1763926248115,-500.0,0.00038356,8]
[394746818,1763926248125,-616.43,0.00038356,8]
[394746819,1763926248135,-500.0,0.00038356,8]
[394746820,1763926248144,-654.91,0.00038356,8]
[394746821,1763926248154,-500.0,0.00038356,8]
[394746822,1763926248163,-500.0,0.00038356,8]
[394746823,1763926248173,-500.0,0.00038356,8]
[394746824,1763926248183,-4145.47838,0.00038356,2]
[394746825,1763926248192,-500.0,0.00038356,8]
[394746826,1763926248202,-683.63,0.00038356,8]
[394746827,1763926248211,-783.38,0.00038356,8]
[394746828,1763926248221,-500.0,0.00038356,8]
[394746829,1763926248230,-500.0,0.00038356,8]
[394746830,1763926248240,-549.84,0.00038356,8]
[394746831,1763926248250,-500.0,0.00038356,8]
[394746832,1763926248259,-500.0,0.00038356,8]
[394746833,1763926248268,-500.0,0.00038356,8]
[394746834,1763926248277,-557.75,0.00038356,8]
[394746835,1763926248286,-500.0,0.00038356,8]
[394746836,1763926248295,-568.18,0.00038356,8]
[394746837,1763926248305,-500.0,0.00038356,8]
[394746838,1763926248314,-1265.57,0.00038356,8]
[394746839,1763926248324,-500.0,0.00038356,8]
[394746840,1763926248333,-500.0,0.00038356,8]
[394746841,1763926248342,-809.37,0.00038356,8]
[394746842,1763926248352,-573.07,0.00038356,8]
[394746843,1763926248362,-500.0,0.00038356,8]
[394746844,1763926248371,-500.0,0.00038356,8]
[394746845,1763926248380,-500.68383679,0.00038356,8]
[394746846,1763926248391,-327.8819851,0.00038356,8]
[394746847,1763926248401,-520.34,0.00038356,8]
[394746848,1763926248413,-500.0,0.00038356,8]
[394746849,1763926248424,-500.0,0.00038356,8]
[394746850,1763926248433,-500.0,0.00038356,8]
[394746851,1763926248442,-500.0,0.00038356,8]
[394746852,1763926248453,-905.01,0.00038356,8]
[394746853,1763926248463,-500.0,0.00038356,8]
[394746854,1763926248471,-500.0,0.00038356,8]
[394746855,1763926248481,-792.06,0.00038356,8]
[394746856,1763926248493,-500.0,0.00038356,8]
[394746857,1763926248502,-500.0,0.00038356,8]
[394746858,1763926248512,-500.0,0.00038356,8]
[394746859,1763926248522,-1188.08,0.00038356,8]
[394746860,1763926248532,-500.0,0.00038356,8]
[394746861,1763926248541,-151.0,0.00038356,30]
[394746862,1763926248551,-500.0,0.00038356,8]
[394746863,1763926248560,-500.0,0.00038356,8]
[394746864,1763926248569,-193.62987084,0.00038356,8]
[394746865,1763926248579,-500.0,0.00038356,8]
[394746866,1763926248589,-500.0,0.00038356,8]
[394746867,1763926248599,-151.0,0.00038356,31]
[394746868,1763926248608,-500.0,0.00038356,8]
[394746869,1763926248618,-151.0,0.00038356,31]
[394746870,1763926248627,-500.0,0.00038356,8]
[394746871,1763926248636,-500.0,0.00038356,8]
[394746872,1763926248645,-151.0,0.00038356,31]
[394746873,1763926248656,-151.0,0.00038356,31]
[394746874,1763926248666,-964.56,0.00038356,8]
[394746875,1763926248676,-151.0,0.00038356,31]
[394746876,1763926248686,-500.0,0.00038356,8]
[394746877,1763926248698,-195.434966,0.00038356,31]
[394746878,1763926248707,-500.0,0.00038356,8]
[394746879,1763926248716,-742.22,0.00038356,8]
[394746880,1763926248725,-500.0,0.00038356,8]
[394746881,1763926248735,-608.77,0.00038356,8]
[394746882,1763926248745,-500.0,0.00038356,8]
[394746883,1763926248755,-500.0,0.00038356,8]
[394746884,1763926248764,-500.0,0.00038356,8]
[394746885,1763926248774,-796.84,0.00038356,8]
[394746886,1763926248783,-500.0,0.00038356,8]
[394746887,1763926248794,-500.0,0.00038356,8]
[394746888,1763926248803,-500.0,0.00038356,8]
[394746889,1763926248814,-500.0,0.00038356,8]
[394746890,1763926248824,-500.0,0.00038356,8]
[394746891,1763926248833,-500.0,0.00038356,8]
[394746892,1763926248843,-500.0,0.00038356,8]
[394746893,1763926248854,-151.0,0.00038356,31]
[394746894,1763926248864,-500.0,0.00038356,8]
[394746895,1763926248873,-500.0,0.00038356,8]
[394746896,1763926248883,-500.0,0.00038356,8]
[394746897,1763926248893,-500.0,0.00038356,8]
[394746898,1763926248903,-214.76297373,0.00038356,8]
[394746899,1763926248918,-285.23702627,0.00038356,8]
[394746900,1763926248928,-500.0,0.00038356,8]
[394746901,1763926248937,-1660.07,0.00038356,8]
[394746902,1763926248947,-500.0,0.00038356,8]
[394746903,1763926248958,-500.0,0.00038356,8]
[394746904,1763926248968,-418.79880774,0.00038356,8]
[394746905,1763926248980,-129.99413683,0.00038356,8]
[394746906,1763926248989,-471.50701218,0.00038356,8]
[394746907,1763926249000,-28.49298782,0.00038356,8]
[394746908,1763926249010,-1032.01,0.00038356,8]
[394746909,1763926249019,-500.0,0.00038356,8]
[394746910,1763926249028,-517.61688811,0.00038356,8]
[394746911,1763926249037,-94.73973858,0.00038356,8]
[394746912,1763926249068,-405.26026142,0.00038356,8]
[394746913,1763926249077,-500.0,0.00038356,8]
[394746914,1763926249086,-611.06,0.00038356,8]
[394746915,1763926249096,-939.32,0.00038356,8]
[394746916,1763926249105,-500.0,0.00038356,8]
[394746917,1763926249114,-437.28300938,0.00038356,8]
[394746918,1763926249958,-508.0,0.00031548,2]
[394746919,1763926249967,-82.73083757,0.00036429,2]
[394746920,1763926249978,-190.75779785,0.00036429,2]
[394746921,1763926249987,-264.77845344,0.00037986,2]
[394746922,1763926249998,-62.71699062,0.00038356,8]
[394746923,1763926250008,-316.62515809,0.00038356,8]
[394746924,1763926250020,-183.37484191,0.00038356,8]
[394746925,1763926250030,-500.0,0.00038356,8]
[394746926,1763926250039,-471.89493495,0.00038356,8]
[394746927,1763926250050,-28.10506505,0.00038356,8]
[394746928,1763926250060,-805.22493495,0.00038356,8]
[394746929,1763926250072,-100.63506505,0.00038356,8]
[394746930,1763926250081,-500.0,0.00038356,8]
[394746931,1763926250090,-265.16493494,0.00038356,8]
[394746932,1763926250101,-234.83506506,0.00038356,8]
[394746933,1763926250110,-500.0,0.00038356,8]
[394746934,1763926250119,-500.0,0.00038356,8]
[394746935,1763926250128,-580.67,0.00038356,8]
[394746936,1763926250137,-222.90950663,0.00038356,8]
[394746937,1763926250451,-277.09049337,0.00038356,8]
[394746938,1763926250462,-500.0,0.00038356,8]
[394746939,1763926250472,-350.84445726,0.00038356,8]
[394746940,1763926250489,-149.15554274,0.00038356,8]
[394746941,1763926250499,-500.0,0.00038356,8]
[394746942,1763926250508,-588.2,0.00038356,8]
[394746943,1763926250518,-500.0,0.00038356,8]
[394746944,1763926250527,-500.0,0.00038356,8]
[394746945,1763926250537,-1424.86,0.00038356,8]
[394746946,1763926250547,-513.81,0.00038356,8]
[394746947,1763926250556,-500.0,0.00038356,8]
[394746948,1763926250568,-500.0,0.00038356,8]
[394746949,1763926250577,-151.0,0.00038356,31]
[394746950,1763926250586,-335.22924239,0.00038356,8]
[394746951,1763926250596,-152.748032,0.00038356,31]
[394746952,1763926250606,-454.7023144,0.00038356,2]
[394746953,1763926250616,-500.0,0.00038356,8]
[394746954,1763926250625,-1348.98,0.00038356,8]
[394746955,1763926250634,-605.58,0.00038356,8]
[394746956,1763926250644,-500.0,0.00038356,8]
[394746957,1763926250654,-641.16,0.00038356,8]
[394746958,1763926250663,-500.0,0.00038356,8]
[394746959,1763926250672,-500.0,0.00038356,8]
[394746960,1763926250682,-880.360641,0.00038356,30]
[394746961,1763926250691,-500.0,0.00038356,8]
[394746962,1763926250700,-1945.58,0.00038356,8]
[394746963,1763926250709,-1281.8,0.00038356,8]
[394746964,1763926250718,-880.360641,0.00038356,30]
[394746965,1763926250728,-500.0,0.00038356,8]
[394746966,1763926250739,-880.360641,0.00038356,30]
[394746967,1763926250748,-880.360641,0.00038356,30]
[394746968,1763926250757,-500.0,0.00038356,8]
[394746969,1763926250767,-886.72,0.00038356,8]
[394746970,1763926250776,-500.0,0.00038356,8]
[394746971,1763926250786,-959.61,0.00038356,8]
[394746972,1763926250795,-500.0,0.00038356,8]
[394746973,1763926250805,-505.63,0.00038356,8]
[394746974,1763926250815,-500.0,0.00038356,8]
[394746975,1763926250824,-500.0,0.00038356,8]
[394746976,1763926250834,-500.0,0.00038356,8]
[394746977,1763926250843,-509.94,0.00038356,8]
[394746978,1763926250853,-840.77,0.00038356,8]
[394746979,1763926250862,-500.0,0.00038356,8]
[394746980,1763926250871,-500.0,0.00038356,8]
[394746981,1763926250881,-500.0,0.00038356,8]
[394746982,1763926250890,-500.0,0.00038356,8]
[394746983,1763926250900,-501.44,0.00038356,8]
[394746984,1763926250909,-500.0,0.00038356,8]
[394746985,1763926250919,-532.86,0.00038356,8]
[394746986,1763926250929,-500.0,0.00038356,8]
[394746987,1763926250939,-500.0,0.00038356,8]
[394746988,1763926250949,-500.0,0.00038356,8]
[394746989,1763926250958,-500.0,0.00038356,8]
[394746990,1763926250968,-780.17,0.00038356,8]
[394746991,1763926250978,-500.0,0.00038356,8]
[394746992,1763926250987,-500.0,0.00038356,8]
[394746993,1763926250996,-643.32279524,0.00038356,8]
[394746994,1763926251006,-500.0,0.00038356,8]
[394746995,1763926251015,-500.0,0.00038356,8]
[394746996,1763926251024,-500.0,0.00038356,8]
[394746997,1763926251033,-500.0,0.00038356,8]
[394746998,1763926251042,-500.0,0.00038356,8]
[394746999,1763926251052,-500.0,0.00038356,8]
[394747000,1763926251061,-500.0,0.00038356,8]
[394747001,1763926251070,-500.0,0.00038356,8]
[394747002,1763926251080,-500.0,0.00038356,8]
[394747003,1763926251090,-500.0,0.00038356,8]
[394747004,1763926251099,-500.0,0.00038356,8]
[394747005,1763926251108,-183.906733,0.00038356,31]
[394747006,1763926251118,-500.0,0.00038356,8]
[394747007,1763926251127,-500.0,0.00038356,8]
[394747008,1763926251136,-500.0,0.00038356,8]
[394747009,1763926251145,-500.0,0.00038356,8]
[394747010,1763926251155,-151.0,0.00038356,31]
[394747011,1763926251164,-577.32099906,0.00038356,8]
[394747012,1763926251174,-500.0,0.00038356,8]
[394747013,1763926251183,-500.0,0.00038356,8]
[394747014,1763926251192,-500.0,0.00038356,8]
[394747015,1763926251201,-500.0,0.00038356,8]
[394747016,1763926251211,-500.0,0.00038356,8]
[394747017,1763926251221,-512.67,0.00038356,8]
[394747018,1763926251231,-521.11,0.00038356,8]
[394747019,1763926251241,-500.0,0.00038356,8]
[394747020,1763926251251,-500.0,0.00038356,8]
[394747021,1763926251260,-500.0,0.00038356,8]
[394747022,1763926251270,-151.0,0.00038356,31]
[394747023,1763926251279,-522.62898939,0.00038356,8]
[394747024,1763926251289,-186.399484,0.00038356,31]
[394747025,1763926251299,-500.0,0.00038356,8]
[394747026,1763926251309,-500.0,0.00038356,8]
[394747027,1763926251319,-500.0,0.00038356,8]
[394747028,1763926251329,-820.08,0.00038356,8]
[394747029,1763926251339,-500.0,0.00038356,8]
[394747030,1763926251348,-151.0,0.00038356,31]
[394747031,1763926251357,-151.0,0.00038356,31]
[394747032,1763926251368,-500.0,0.00038356,8]
[394747033,1763926251377,-500.0,0.00038356,8]
[394747034,1763926251388,-504.94374761,0.00038356,8]
[394747035,1763926251397,-517.78,0.00038356,8]
[394747036,1763926251407,-500.0,0.00038356,8]
[394747037,1763926251420,-1076.64,0.00038356,8]
[394747038,1763926251429,-151.0,0.00038356,31]
[394747039,1763926251439,-500.0,0.00038356,8]
[394747040,1763926251448,-669.61,0.00038356,8]
[394747041,1763926251459,-500.0,0.00038356,8]
[394747042,1763926251468,-507.57,0.00038356,8]
[394747043,1763926251478,-500.0,0.00038356,8]
[394747044,1763926251488,-500.0,0.00038356,8]
[394747045,1763926251498,-500.0,0.00038356,8]
[394747046,1763926251507,-684.45,0.00038356,8]
[394747047,1763926251516,-500.0,0.00038356,8]
[394747048,1763926251526,-500.0,0.00038356,8]
[394747049,1763926251535,-652.61,0.00038356,2]
[394747050,1763926251544,-500.0,0.00038356,8]
[394747051,1763926251554,-559.76,0.00038356,8]
[394747052,1763926251563,-529.91947,0.00038356,31]
[394747053,1763926251573,-500.0,0.00038356,8]
[394747054,1763926251583,-151.0,0.00038356,31]
[394747055,1763926251592,-500.0,0.00038356,8]
[394747056,1763926251601,-529.91947,0.00038356,31]
[394747057,1763926251610,-500.0,0.00038356,8]
[394747058,1763926251619,-500.0,0.00038356,8]
[394747059,1763926251628,-500.0,0.00038356,8]
[394747060,1763926251638,-500.0,0.00038356,8]
[394747061,1763926251647,-500.0,0.00038356,8]
[394747062,1763926251656,-151.0,0.00038356,31]
[394747063,1763926251665,-529.91947,0.00038356,31]
[394747064,1763926251675,-529.91947,0.00038356,31]
[394747065,1763926251685,-151.0,0.00038356,31]
[394747066,1763926251695,-205.434949,0.00038356,31]
[394747067,1763926251705,-500.0,0.00038356,8]
[394747068,1763926251714,-500.0,0.00038356,8]
[394747069,1763926251723,-1148.37,0.00038356,8]
[394747070,1763926251733,-500.0,0.00038356,2]
[394747071,1763926251742,-500.0,0.00038356,8]
[394747072,1763926251751,-513.37,0.00038356,8]
[394747073,1763926251760,-500.0,0.00038356,8]
[394747074,1763926251770,-500.0,0.00038356,8]
[394747075,1763926251778,-500.0,0.00038356,8]
[394747076,1763926251787,-318.28191612,0.00038356,2]
[394747077,1763926251797,-600.0,0.00038356,30]
[394747078,1763926251806,-150.0,0.00038356,5]
[394747079,1763926251816,-1880.43140857,0.00038365,2]
[394747080,1763926251826,-500.0,0.00038373,5]
[394747081,1763926251836,-268.06848757,0.00038373,5]
[394747082,1763926251845,-500.0,0.00038373,5]
[394747083,1763926251855,-580.65522907,0.00038373,5]
[394747084,1763926251864,-500.0,0.00038373,5]
[394747085,1763926251874,-500.0,0.00038373,5]
[394747086,1763926251884,-500.0,0.00038373,5]
[394747087,1763926251893,-500.0,0.00038373,5]
[394747088,1763926251904,-500.0,0.00038373,5]
[394747089,1763926251914,-500.0,0.00038373,5]
[394747090,1763926251923,-2792.50706836,0.00038378,58]
[394747091,1763926251932,-500.0,0.00038401,8]
[394747092,1763926251942,-200.0,0.00038488,20]
[394747093,1763926251951,-500.0,0.00038528,8]
[394747094,1763926251961,-500.0,0.00038528,7]
[394747095,1763926251969,-500.0,0.00038528,8]
[394747096,1763926251979,-500.0,0.00038528,8]
[394747097,1763926251989,-151.0,0.00038529,120]
[394747098,1763926251998,-151.0,0.00038529,120]
[394747099,1763926252008,-161.529094,0.00038529,30]
[394747100,1763926252018,-151.0,0.00038529,120]
[394747101,1763926252027,-151.0,0.00038529,120]
[394747102,1763926252036,-151.0,0.00038529,120]
[394747103,1763926252046,-33362.6037,0.00038529,2]
[394747104,1763926252055,-1000.0,0.00038529,2]
[394747105,1763926252064,-191.36969759,0.0003853,2]
[394747106,1763926252074,-284.988626,0.00038543,120]
[394747107,1763926252083,-158.303715,0.00038543,120]
[394747108,1763926252092,-151.0,0.00038543,120]
[394747109,1763926252102,-150.0,0.00038548,2]
[394747110,1763926252111,-150.0,0.00038548,2]
[394747111,1763926252120,-551.04,0.00038548,2]
[394747112,1763926252129,-151.0,0.00038548,120]
[394747113,1763926252138,-151.0,0.00038548,90]
[394747114,1763926252147,-273.663209,0.00038548,120]
[394747115,1763926252156,-2485.0,0.00038551,5]
[394747116,1763926252165,-1880.43140857,0.00038557,2]
[394747117,1763926252174,-259.0754174,0.00038628,2]
[394747118,1763926252183,-500.0,0.00038629,8]
[394747119,1763926252192,-500.0,0.00038629,7]
[394747120,1763926252202,-500.0,0.00038629,7]
[394747121,1763926252211,-500.0,0.00038629,8]
[394747122,1763926252220,-227.09864709,0.00038629,8]
[394747123,1763926252229,-500.0,0.00038629,8]
[394747124,1763926252238,-500.0,0.00038629,8]
[394747125,1763926252247,-150.0,0.00038629,20]
[394747126,1763926252256,-500.0,0.00038629,2]
[394747127,1763926252265,-281.99,0.00038629,2]
[394747128,1763926252274,-500.0,0.0003863,14]
[394747129,1763926252282,-500.0,0.0003863,14]
[394747130,1763926252291,-500.0,0.0003863,14]
[394747131,1763926252301,-500.0,0.0003863,14]
[394747132,1763926252309,-500.0,0.0003863,14]
[394747133,1763926252319,-500.0,0.0003863,14]
[394747134,1763926252338,-500.0,0.0003863,14]
[394747135,1763926252348,-500.0,0.0003863,14]
[394747136,1763926252357,-154.62665995,0.0003863,30]
[394747137,1763926252366,-500.0,0.0003863,8]
[394747138,1763926252375,-485.716053,0.0003863,8]
[394747139,1763926252384,-326.206516,0.0003863,8]
[394747140,1763926252393,-579.296223,0.0003863,8]
[394747141,1763926252402,-500.0,0.0003863,8]
[394747142,1763926252412,-994.56,0.0003863,8]
[394747143,1763926252424,-500.0,0.0003863,8]
[394747144,1763926252433,-500.0,0.0003863,8]
[394747145,1763926252443,-646.81,0.0003863,8]
[394747146,1763926252455,-500.0,0.0003863,8]
[394747147,1763926252464,-500.0,0.0003863,8]
[394747148,1763926252473,-500.0,0.0003863,8]
[394747149,1763926252482,-521.37,0.0003863,8]
[394747150,1763926252493,-500.0,0.0003863,8]
[394747151,1763926252502,-624.47,0.0003863,8]
[394747152,1763926252511,-500.0,0.0003863,8]
[394747153,1763926252520,-500.0,0.0003863,8]
[394747154,1763926252529,-500.0,0.0003863,8]
[394747155,1763926252541,-500.0,0.0003863,8]
[394747156,1763926252550,-500.0,0.0003863,8]
[394747157,1763926252559,-663.21,0.0003863,8]
[394747158,1763926252568,-500.0,0.0003863,8]
[394747159,1763926252577,-500.0,0.0003863,8]
[394747160,1763926252586,-500.0,0.0003863,8]
[394747161,1763926252595,-772.78,0.0003863,8]
[394747162,1763926252604,-500.0,0.0003863,8]
[394747163,1763926252613,-500.0,0.0003863,8]
[394747164,1763926252622,-500.0,0.0003863,8]
[394747165,1763926252631,-575.01245982,0.0003863,8]
[394747166,1763926252639,-500.0,0.0003863,8]
[394747167,1763926252648,-500.0,0.0003863,8]
[394747168,1763926252657,-500.0,0.0003863,8]
[394747169,1763926252666,-500.0,0.0003863,8]
[394747170,1763926252675,-541.0,0.0003863,8]
[394747171,1763926252684,-500.0,0.0003863,8]
[394747172,1763926252693,-930.02,0.0003863,8]
[394747173,1763926252702,-500.0,0.0003863,8]
[394747174,1763926252711,-500.0,0.0003863,8]
[394747175,1763926252720,-500.0,0.0003863,8]
[394747176,1763926252729,-500.0,0.0003863,8]
[394747177,1763926252738,-570.08,0.0003863,8]
[394747178,1763926252748,-500.0,0.0003863,8]
[394747179,1763926252758,-500.0,0.0003863,8]
[394747180,1763926252770,-500.0,0.0003863,8]
[394747181,1763926252780,-588.32,0.0003863,8]
[394747182,1763926252790,-500.0,0.0003863,8]
[394747183,1763926252800,-500.0,0.0003863,8]
[394747184,1763926252809,-500.0,0.0003863,8]
[394747185,1763926252819,-831.55,0.0003863,8]
[394747186,1763926252829,-500.0,0.0003863,8]
[394747187,1763926252839,-500.0,0.0003863,8]
[394747188,1763926252849,-500.0,0.0003863,8]
[394747189,1763926252858,-500.0,0.0003863,8]
[394747190,1763926252867,-500.0,0.0003863,8]
[394747191,1763926252877,-500.0,0.0003863,8]
[394747192,1763926252886,-408.74717512,0.0003863,8]
[394747193,1763926252895,-500.0,0.0003863,8]
[394747194,1763926252905,-500.0,0.0003863,8]
[394747195,1763926252914,-700.0,0.0003863,120]
[394747196,1763926252923,-500.0,0.0003863,8]
[394747197,1763926252933,-500.0,0.0003863,8]
[394747198,1763926252942,-500.0,0.0003863,8]
[394747199,1763926252951,-500.0,0.0003863,8]
[394747200,1763926252961,-500.0,0.0003863,8]
[394747201,1763926252970,-500.0,0.0003863,8]
[394747202,1763926252980,-500.0,0.0003863,8]
[394747203,1763926252990,-393.75670834,0.0003863,8]
[394747204,1763926252999,-542.96,0.0003863,8]
[394747205,1763926253158,-500.0,0.0003863,8]
[394747206,1763926253181,-500.0,0.0003863,8]
[394747207,1763926253191,-500.0,0.0003863,8]
[394747208,1763926253200,-744.71,0.0003863,8]
[394747209,1763926253210,-500.0,0.0003863,8]
[394747210,1763926253219,-500.0,0.0003863,8]
[394747211,1763926253229,-869.16,0.0003863,8]
[394747212,1763926253239,-500.0,0.0003863,8]
[394747213,1763926253249,-510.17,0.0003863,8]
[394747214,1763926253259,-500.0,0.0003863,8]
[394747215,1763926253269,-500.0,0.0003863,8]
[394747216,1763926253278,-500.0,0.0003863,8]
[394747217,1763926253287,-500.0,0.0003863,8]
[394747218,1763926253297,-500.0,0.0003863,8]
[394747219,1763926253307,-500.0,0.0003863,8]
[394747220,1763926253318,-567.97,0.0003863,8]
[394747221,1763926253327,-500.0,0.0003863,8]
[394747222,1763926253337,-328.87262125,0.0003863,8]
[394747223,1763926253346,-500.0,0.0003863,8]
[394747224,1763926253356,-834.31,0.0003863,8]
[394747225,1763926253365,-500.0,0.0003863,8]
[394747226,1763926253375,-500.0,0.0003863,8]
[394747227,1763926253387,-599.68,0.0003863,8]
[394747228,1763926253398,-500.0,0.0003863,8]
[394747229,1763926253411,-526.98,0.0003863,8]
[394747230,1763926253435,-500.0,0.0003863,8]
[394747231,1763926253450,-500.0,0.0003863,8]
[394747232,1763926253460,-451.15,0.0003863,8]
[394747233,1763926253471,-595.37,0.0003863,8]
[394747234,1763926253482,-542.88,0.0003863,8]
[394747235,1763926253494,-501.57,0.0003863,8]
[394747236,1763926253504,-553.72572661,0.0003863,8]
[394747237,1763926253514,-500.0,0.0003863,8]
[394747238,1763926253524,-500.0,0.0003863,8]
[394747239,1763926253534,-500.0,0.0003863,8]
[394747240,1763926253544,-500.0,0.0003863,8]
[394747241,1763926253554,-500.0,0.0003863,8]
[394747242,1763926253564,-500.0,0.0003863,8]
[394747243,1763926253573,-500.0,0.0003863,8]
[394747244,1763926253584,-500.0,0.0003863,8]
[394747245,1763926253595,-500.0,0.0003863,8]
[394747246,1763926253605,-500.0,0.0003863,8]
[394747247,1763926253616,-377.95386735,0.0003863,8]
[394747248,1763926253626,-500.0,0.0003863,8]
[394747249,1763926253636,-588.95,0.0003863,8]
[394747250,1763926253645,-500.0,0.0003863,8]
[394747251,1763926253656,-500.0,0.0003863,8]
[394747252,1763926253665,-500.0,0.0003863,8]
[394747253,1763926253676,-515.44,0.0003863,8]
[394747254,1763926253686,-500.0,0.0003863,8]
[394747255,1763926253695,-500.0,0.0003863,8]
[394747256,1763926253705,-1219.96,0.0003863,8]
[394747257,1763926253715,-500.0,0.0003863,8]
[394747258,1763926253725,-500.0,0.0003863,8]
[394747259,1763926253735,-500.0,0.0003863,8]
[394747260,1763926253746,-500.0,0.0003863,8]
[394747261,1763926253755,-151.0,0.0003863,30]
[394747262,1763926253765,-151.0,0.0003863,30]
[394747263,1763926253775,-500.0,0.0003863,8]
[394747264,1763926253785,-500.0,0.0003863,8]
[394747265,1763926253796,-151.0,0.0003863,30]
[394747266,1763926253806,-619.48,0.0003863,8]
[394747267,1763926253816,-500.0,0.0003863,8]
[394747268,1763926253825,-1000.0,0.0003863,8]
[394747269,1763926253835,-660.2,0.0003863,8]
[394747270,1763926253846,-1078.23,0.0003863,8]
[394747271,1763926253855,-635.36,0.0003863,8]
[394747272,1763926253865,-500.0,0.0003863,8]
[394747273,1763926253876,-500.0,0.0003863,8]
[394747274,1763926253886,-500.0,0.0003863,8]
[394747275,1763926253896,-575.32,0.0003863,8]
[394747276,1763926253906,-500.0,0.0003863,8]
[394747277,1763926253916,-500.0,0.0003863,8]
[394747278,1763926253925,-500.0,0.0003863,8]
[394747279,1763926253935,-500.0,0.0003863,8]
[394747280,1763926253944,-500.0,0.0003863,8]
[394747281,1763926253954,-500.0,0.0003863,8]
[394747282,1763926253965,-500.0,0.0003863,8]
[394747283,1763926253977,-500.0,0.0003863,8]
[394747284,1763926253987,-616.31,0.0003863,8]
[394747285,1763926253998,-500.0,0.0003863,8]
[394747286,1763926254009,-557.35,0.0003863,8]
[394747287,1763926254020,-566.21,0.0003863,8]
[394747288,1763926254030,-500.0,0.0003863,8]
[394747289,1763926254040,-525.04822911,0.0003863,8]
[394747290,1763926254050,-500.0,0.0003863,8]
[394747291,1763926254060,-500.0,0.0003863,8]
[394747292,1763926254071,-500.0,0.0003863,8]
[394747293,1763926254081,-500.0,0.0003863,8]
[394747294,1763926254091,-500.0,0.0003863,8]
[394747295,1763926254102,-407.74756963,0.0003863,8]
[394747296,1763926254113,-151.0,0.0003863,120]
[394747297,1763926254123,-533.88,0.0003863,8]
[394747298,1763926254133,-538.38,0.0003863,8]
[394747299,1763926254143,-500.0,0.0003863,8]
[394747300,1763926254154,-540.1,0.0003863,8]
[394747301,1763926254165,-500.0,0.0003863,8]
[394747302,1763926254175,-500.0,0.0003863,8]
[394747303,1763926254185,-597.74,0.0003863,8]
[394747304,1763926254196,-544.18,0.0003863,8]
[394747305,1763926254206,-500.0,0.0003863,8]
[394747306,1763926254216,-500.0,0.0003863,8]
[394747307,1763926254226,-500.0,0.0003863,8]
[394747308,1763926254236,-502.05,0.0003863,8]